bitfinex-derivatives/quotes_ETHF0:USTF0_20251024
["timestamp","ask_amount","ask_price","bid_price","bid_amount"]
[1761317153161,0.3238,3913.6,3913.3,0.46256625]
[1761317153674,0.3238,3913.6,3913.3,0.00265625]
[1761317153868,0.3238,3913.6,3913.3,0.46256625]
[1761317154064,0.3238,3913.6,3913.3,0.00265625]
[1761317154461,0.3238,3913.4,3913.3,0.00265625]
[1761317155561,0.7837,3913.4,3913.3,0.00265625]
[1761317156475,0.3238,3913.4,3913.3,0.00265625]
[1761317156970,5.0,3913.4,3911.4,2.71467]
[1761317157169,0.3291,3912.8,3912.1,0.2901]
[1761317157372,0.1406,3912.6,3912.1,0.46006]
[1761317157568,0.3291,3912.5,3912.1,0.46006]
[1761317157868,0.3291,3912.5,3912.2,0.46004]
[1761317158076,1.29044,3913.2,3912.2,0.46004]
[1761317158077,0.3291,3912.9,3912.3,0.2901]
[1761317158275,0.3291,3912.9,3912.2,0.29229688]
[1761317158470,0.3291,3912.9,3912.5,0.7501]
[1761317158978,0.3291,3912.9,3912.6,0.46]
[1761317159179,0.78908,3912.8,3912.2,0.00219688]
[1761317159370,0.1406,3912.6,3912.4,0.46002]
[1761317159570,0.3291,3912.5,3912.4,0.46002]
[1761317160269,0.3291,3912.5,3912.2,0.46223688]
[1761317160468,1.29045,3913.2,3912.4,0.2901]
[1761317160469,0.78906,3913.0,3912.4,0.2901]
[1761317160669,0.45996,3912.9,3912.5,0.46001]
[1761317160884,0.3291,3912.7,3912.4,0.46002]
[1761317161182,0.3291,3912.5,3912.3,6.149]
[1761317161476,0.3291,3912.5,3912.3,6.4391]
[1761317161980,0.3291,3912.5,3912.3,6.149]
[1761317162882,0.3291,3912.5,3912.3,9.82303]
[1761317163178,0.3291,3912.5,3912.3,9.363]
[1761317163583,0.78912,3912.5,3912.3,9.363]
[1761317163885,0.3291,3912.4,3912.3,9.363]
[1761317164477,0.78913,3912.3,3912.2,0.00219688]
[1761317165777,0.1406,3910.8,3910.2,1.82058326]
[1761317165981,0.3291,3910.5,3909.7,1.36931999]
[1761317166177,0.3291,3910.5,3910.1,0.2901]
[1761317166577,0.3291,3910.7,3910.2,0.2901]
[1761317166776,0.33151632,3910.7,3910.4,0.46025]
[1761317166976,0.33151632,3910.7,3910.5,0.46024]
[1761317168482,0.33151632,3910.7,3910.2,0.00269397]
[1761317168688,0.3231,3910.3,3910.2,0.00269397]
[1761317169780,1.15299632,3910.7,3908.8,0.46044]
[1761317169781,0.46037,3909.5,3908.8,0.46044]
[1761317170086,0.3231,3909.3,3908.8,3.248]
[1761317170275,0.3231,3909.2,3908.8,3.248]
[1761317170478,0.46039,3909.3,3907.8,0.02558985]
[1761317170479,0.3231,3908.9,3907.8,0.02558985]
[1761317170682,0.3231,3908.2,3907.8,0.02558985]
[1761317170892,0.3231,3907.9,3907.8,0.02869029]
[1761317171190,0.32516673,3907.9,3907.8,0.02869029]
[1761317171383,0.4578,3907.2,3907.1,6.406]
[1761317171890,0.3231,3907.7,3907.1,6.406]
[1761317172091,0.3231,3907.7,3907.5,0.2901]
[1761317172384,0.3231,3907.7,3907.5,0.00320802]
[1761317172589,0.3231,3907.7,3907.5,0.46379802]
[1761317172784,0.3231,3907.7,3907.5,0.00320802]
[1761317173988,0.00206673,3907.9,3907.8,0.75066]
[1761317174387,0.32516673,3907.9,3907.5,0.00320802]
[1761317174585,0.3231,3907.6,3907.5,0.00320802]
[1761317175083,0.3231,3907.2,3906.4,4.97]
[1761317175480,0.3231,3907.2,3906.8,0.46067]
[1761317175788,0.3231,3907.2,3906.9,0.46066]
[1761317175981,0.3231,3907.2,3906.9,0.00247591]
[1761317176391,0.1347,3907.4,3906.9,0.00247591]
[1761317176392,0.3231,3907.0,3906.9,0.00247591]
[1761317177088,0.3231,3907.0,3906.3,0.46074]
[1761317177089,0.4607,3906.7,3905.9,0.46078]
[1761317177385,0.4607,3906.7,3905.6,0.2901]
[1761317177386,0.3231,3906.6,3906.0,0.46077]
[1761317177582,0.3231,3906.4,3905.3,6.856]
[1761317177783,0.1347,3906.7,3905.3,6.856]
[1761317177784,0.3231,3906.6,3905.3,6.856]
[1761317178088,0.1347,3906.7,3905.3,0.00329443]
[1761317178089,0.3231,3905.9,3905.3,0.00329443]
[1761317178486,0.1347,3906.0,3903.7,0.2901]
[1761317178487,0.3231,3905.6,3903.7,0.2901]
[1761317178787,0.3231,3905.2,3903.6,0.2901]
[1761317178978,0.3231,3905.2,3904.7,0.46092]
[1761317179184,0.3231,3905.9,3904.5,4.462]
[1761317179387,0.3231,3905.9,3904.9,0.2901]
[1761317179689,0.3231,3905.9,3904.9,0.29203426]
[1761317180184,0.3231,3905.9,3905.7,0.46081]
[1761317180389,0.3231,3905.9,3904.9,0.00193426]
[1761317180390,0.1347,3906.7,3906.3,0.46073]
[1761317180588,0.3231,3906.6,3906.4,0.46072]
[1761317180891,0.3231,3906.6,3905.8,0.2901]
[1761317181188,0.3231,3906.6,3905.7,9.369]
[1761317181391,0.3231,3907.0,3906.0,0.1242]
[1761317181687,0.3231,3907.0,3906.8,0.46067]
[1761317181889,0.3231,3907.3,3907.2,0.46062]
[1761317182383,0.32516673,3907.9,3907.5,0.46059]
[1761317182787,0.32516673,3907.9,3906.7,9.369]
[1761317182989,0.3231,3907.8,3906.8,0.2901]
[1761317183286,0.3231,3907.6,3907.2,0.46063]
[1761317183685,0.3231,3907.6,3907.4,0.4606]
[1761317184193,0.3231,3907.3,3907.2,0.46063]
[1761317184491,0.46262673,3907.9,3906.6,0.15973988]
[1761317184492,0.3231,3907.8,3906.6,0.15973988]
[1761317184692,0.46059,3907.6,3906.8,0.46067]
[1761317184886,0.3231,3907.3,3906.6,9.37]
[1761317185087,0.3231,3907.3,3907.1,0.46064]
[1761317185384,0.3231,3907.3,3906.6,9.6601]
[1761317185585,0.1347,3907.4,3906.7,0.46069]
[1761317185586,0.3231,3907.1,3906.7,0.46069]
[1761317185786,0.3231,3907.1,3906.8,0.46068]
[1761317186297,0.3231,3907.1,3906.5,0.2901]
[1761317186298,0.3231,3907.1,3906.7,0.46069]
[1761317186485,0.3231,3907.1,3906.9,0.46066]
[1761317186992,0.3231,3907.1,3906.8,0.46068]
[1761317187195,0.3231,3907.1,3906.9,0.46067]
[1761317187597,0.3231,3907.1,3906.9,0.75077]
[1761317187792,0.1347,3907.4,3907.3,0.46062]
[1761317188389,0.4578,3907.4,3907.3,0.46062]
[1761317188795,0.32516673,3907.9,3907.7,0.46057]
[1761317188993,0.32516673,3907.9,3907.7,0.46297615]
[1761317191495,0.32516673,3907.9,3907.8,0.46056]
[1761317191886,0.00206673,3907.9,3907.8,0.75066]
[1761317192298,0.32516673,3907.9,3907.8,0.46056]
[1761317193290,0.3231,3907.8,3907.7,0.00240615]
[1761317193883,0.78366,3907.8,3907.7,0.00240615]
[1761317194690,0.3231,3907.8,3907.7,0.00240615]
[1761317194891,0.3231,3907.8,3907.7,0.46297615]
[1761317195094,0.3231,3907.8,3907.7,0.00240615]
[1761317195800,0.78366,3907.8,3907.7,0.00240615]
[1761317196095,0.3231,3907.8,3907.7,0.00240615]
[1761317196298,0.3231,3907.8,3907.7,0.46297615]
[1761317196995,0.3231,3907.8,3907.7,0.00240615]
[1761317197195,0.3231,3907.8,3907.7,0.46297615]
[1761317199093,0.3231,3907.8,3907.7,0.00240615]
[1761317199291,0.97097017,3907.8,3907.7,0.00240615]
[1761317200096,0.97097017,3907.8,3907.7,0.46297615]
[1761317200802,1.43153017,3907.8,3907.7,0.00240615]
[1761317200994,0.97097017,3907.8,3907.7,0.00240615]
[1761317201303,0.97097017,3907.8,3907.7,0.46297615]
[1761317201595,0.56788124,3907.8,3907.7,0.75387615]
[1761317201796,0.00206673,3907.9,3907.7,0.75387615]
[1761317201797,0.00206673,3907.9,3907.8,0.46056]
[1761317202003,0.31906673,3907.9,3907.8,0.46056]
[1761317202199,0.57110815,3907.9,3907.7,0.00240615]
[1761317202395,0.317,3907.8,3907.7,0.00240615]
[1761317203593,0.317,3907.8,3907.7,0.46297615]
[1761317205304,0.317,3907.8,3907.7,0.00240615]
[1761317205604,0.317,3907.8,3907.7,0.46297615]
[1761317206410,0.00206673,3907.9,3907.8,0.75146]
[1761317207417,0.31906673,3907.9,3907.8,0.75146]
[1761317207620,0.00206673,3907.9,3907.8,0.75146]
[1761317208419,0.00206673,3907.9,3907.8,15.11846]
[1761317209617,0.317,3909.0,3908.5,0.2909]
[1761317209917,0.96544559,3908.9,3908.8,0.46044]
[1761317210619,0.317,3908.8,3908.7,0.46046]
[1761317210820,0.96544559,3908.8,3908.7,0.46046]
[1761317211415,0.8854779,3908.8,3908.7,0.46046]
[1761317211813,0.96544469,3908.8,3908.7,0.46046]
[1761317212018,0.8854779,3908.8,3908.7,0.46046]
[1761317212523,0.317,3908.8,3908.7,0.46046]
[1761317213715,0.00284211,3908.9,3908.8,0.75135]
[1761317213910,0.31984211,3908.9,3908.8,0.75135]
[1761317214118,0.31984211,3908.9,3908.8,0.46045]
[1761317215213,0.55154211,3908.9,3908.8,0.68835]
[1761317215416,0.55154211,3908.9,3908.6,0.68837]
[1761317215417,0.777,3908.7,3908.6,0.68837]
[1761317216022,0.777,3908.7,3908.6,0.91847]
[1761317217011,0.317,3908.7,3908.6,1.20907]
[1761317217218,0.81564211,3908.9,3908.8,0.69034]
[1761317217425,0.81564211,3908.9,3908.8,0.46044]
[1761317217718,0.81564211,3908.9,3908.8,0.69034]
[1761317218318,0.58354211,3908.9,3908.8,0.91774]
[1761317219223,0.81564211,3908.9,3908.8,0.46044]
[1761317219919,0.81564211,3908.9,3908.8,0.69034]
[1761317220116,0.00284211,3908.9,3908.8,1.20834]
[1761317220324,0.00284211,3908.9,3908.8,0.46044]
[1761317220325,0.81564211,3908.9,3908.8,0.46044]
[1761317220617,0.81564211,3908.9,3908.0,1.27525]
[1761317220618,0.3472,3908.8,3907.6,1.65991999]
[1761317220818,0.3472,3907.9,3907.1,23.19724617]
[1761317221020,0.3472,3907.9,3907.5,0.46059]
[1761317221217,0.80776,3907.9,3907.3,9.362]
[1761317221516,0.3472,3907.8,3907.3,9.362]
[1761317222115,0.3472,3907.4,3907.3,9.362]
[1761317222315,0.3472,3907.1,3906.0,0.2906]
[1761317222517,0.3472,3905.9,3905.8,0.4608]
[1761317222717,0.3472,3905.9,3905.8,9.8218]
[1761317223119,0.3472,3905.9,3905.8,9.36341755]
[1761317223120,0.34964722,3905.9,3905.8,9.36341755]
[1761317225928,0.34964722,3905.9,3905.8,0.00241755]
[1761317226231,0.4609,3905.0,3904.2,0.46098]
[1761317226428,0.3472,3904.7,3904.3,0.46097]
[1761317226726,0.3472,3904.7,3904.2,2.942]
[1761317227123,0.3472,3904.6,3904.2,2.94478015]
[1761317227425,0.3472,3904.6,3904.4,0.46096]
[1761317228122,0.3472,3904.6,3904.2,2.94478015]
[1761317229123,0.3472,3904.6,3904.4,0.46096]
[1761317229725,0.3472,3904.6,3904.2,2.94478015]
[1761317229921,0.3214,3904.4,3904.2,2.94478015]
[1761317230125,0.3214,3904.3,3904.2,0.00278015]
[1761317233719,0.4554,3904.8,3904.2,0.00278015]
[1761317233921,0.3214,3904.7,3904.4,0.46096]
[1761317234120,0.3214,3904.7,3904.2,0.00278015]
[1761317234121,0.3214,3904.7,3904.5,0.46095]
[1761317236424,0.3214,3904.7,3904.2,0.29348015]
[1761317236830,0.3214,3904.7,3904.5,0.46095]
[1761317237833,0.3214,3904.7,3904.3,0.46097]
[1761317238036,0.3214,3904.7,3904.5,0.46095]
[1761317238231,0.3214,3904.7,3904.2,0.00278015]
[1761317238727,0.78238,3904.3,3904.2,0.00278015]
[1761317239830,0.3214,3904.3,3904.2,0.00278015]
[1761317240021,0.3214,3904.3,3904.2,0.46377015]
[1761317241037,0.3214,3904.7,3904.2,0.29348015]
[1761317241329,0.134,3905.4,3904.6,0.2907]
[1761317241330,0.3214,3905.1,3904.6,0.2907]
[1761317241534,0.3214,3905.1,3905.0,0.46089]
[1761317243029,0.3214,3905.1,3905.0,0.75159]
[1761317243536,0.3214,3905.4,3905.3,0.46086]
[1761317243732,0.3214,3905.4,3905.0,1.44293]
[1761317243733,0.3214,3905.8,3905.7,0.46081]
[1761317245034,0.3214,3905.8,3904.9,1.15227]
[1761317245338,0.3214,3905.8,3905.6,0.46082]
[1761317246239,0.3214,3905.8,3905.3,0.46085]
[1761317246434,0.00244722,3905.9,3904.4,1.15239]
[1761317246435,0.3214,3905.6,3904.4,1.15239]
[1761317246639,0.46088,3905.1,3904.4,0.46096]
[1761317246831,0.3214,3904.7,3904.2,0.00278015]
[1761317247032,0.3214,3904.7,3904.5,0.46095]
[1761317247240,0.3214,3904.7,3904.6,0.46094]
[1761317247436,0.3214,3904.7,3904.2,0.00278015]
[1761317247752,0.3214,3904.7,3904.2,0.46376015]
[1761317247753,0.3214,3904.6,3904.2,0.46376015]
[1761317248046,0.3214,3904.5,3904.2,0.00278015]
[1761317248436,0.3214,3904.5,3904.3,0.46098]
[1761317248738,0.3214,3904.5,3904.4,0.46096]
[1761317249136,0.3214,3904.5,3904.2,0.00278015]
[1761317249335,0.46096,3904.4,3904.2,0.00278015]
[1761317249535,0.78238,3904.3,3904.2,0.00278015]
[1761317249741,0.3214,3904.3,3904.2,0.00278015]
[1761317250550,0.1305,3904.8,3904.7,0.46093]
[1761317251046,0.4519,3904.8,3904.7,0.46093]
[1761317252246,0.3214,3904.8,3904.7,0.46093]
[1761317252444,0.46086,3905.3,3904.7,0.46093]
[1761317252638,0.46086,3905.3,3904.2,0.00278015]
[1761317252639,0.89957571,3905.9,3905.7,0.2907]
[1761317252841,0.00244722,3905.9,3905.8,0.2907]
[1761317253246,0.3214,3905.8,3905.1,0.2907]
[1761317253450,0.3214,3905.3,3905.0,0.46088]
[1761317253740,0.3214,3905.3,3905.0,6.65858]
[1761317253942,0.3214,3905.2,3905.1,0.46088]
[1761317258046,0.00244722,3905.9,3905.7,0.46081]
[1761317258440,0.3262,3905.8,3905.7,0.46081]
[1761317258845,0.00244722,3905.9,3905.8,0.2911]
[1761317259239,0.32864722,3905.9,3905.7,0.46081]
[1761317260947,0.00244722,3905.9,3905.8,0.2911]
[1761317261447,0.00244722,3905.9,3905.8,5.2911]
[1761317261647,0.3262,3906.9,3906.8,0.46068]
[1761317261858,1.47511013,3908.1,3906.8,0.46068]
[1761317261859,0.3262,3907.8,3907.6,0.75168]
[1761317262066,0.1303,3908.8,3908.1,0.46052]
[1761317262350,0.63625502,3908.7,3907.5,3.2715]
[1761317262551,0.55627057,3908.6,3907.5,3.2715]
[1761317262744,0.55627057,3908.5,3908.1,0.00188939]
[1761317263046,0.13344724,3908.8,3908.1,0.00188939]
[1761317263244,0.55561831,3908.7,3908.3,0.46049]
[1761317263442,0.13344724,3908.8,3908.3,0.46049]
[1761317263946,0.3262,3908.7,3908.5,0.46048]
[1761317264351,0.00314724,3908.8,3908.2,1.47078]
[1761317264352,0.32934724,3908.8,3908.7,0.46046]
[1761317264550,0.32934724,3908.8,3908.5,0.46047]
[1761317264751,0.32934724,3908.8,3908.6,0.46046]
[1761317265250,0.32934724,3908.8,3908.6,0.77996]
[1761317265452,0.32934724,3908.8,3908.6,0.46046]
[1761317265751,0.00314724,3908.8,3908.6,0.46046]
[1761317265951,0.00314724,3908.8,3908.7,0.3195]
[1761317267446,0.3262,3909.6,3909.3,0.77988]
[1761317267952,0.3262,3909.6,3908.6,0.46046]
[1761317267953,0.3262,3909.6,3909.4,0.77987]
[1761317268346,0.3262,3909.6,3909.4,0.46037]
[1761317268547,0.32911404,3909.6,3909.3,0.46038]
[1761317269041,0.32911404,3909.6,3909.4,0.46037]
[1761317271356,0.32911404,3909.6,3909.4,0.3195]
[1761317271560,0.32911404,3909.6,3909.2,0.3195]
[1761317271757,0.32911404,3909.6,3909.3,0.46038]
[1761317272057,0.32911404,3909.6,3909.3,0.77988]
[1761317272857,0.32911404,3909.6,3909.3,0.3195]
[1761317273046,0.32911404,3909.6,3909.3,0.77988]
[1761317273246,0.32911404,3909.6,3909.3,0.3195]
[1761317273443,0.3262,3909.3,3908.6,8.3115]
[1761317273661,0.13321404,3909.6,3908.2,1.32858344]
[1761317273662,0.3262,3908.9,3908.7,0.46045]
[1761317273856,0.3262,3908.9,3908.5,0.3195]
[1761317273857,0.3262,3908.9,3908.5,0.77997]
[1761317274053,0.3262,3908.9,3908.7,0.77995]
[1761317274249,0.3262,3908.9,3908.8,0.3195]
[1761317274560,0.3262,3909.1,3908.9,0.3195]
[1761317274759,0.3262,3909.3,3909.0,0.3195]
[1761317275053,0.46044,3908.9,3908.5,0.3195]
[1761317275255,1.28412404,3909.6,3908.5,0.3195]
[1761317275256,0.3262,3908.8,3908.5,0.3195]
[1761317275451,0.3262,3908.9,3908.3,0.3195]
[1761317275659,0.1303,3909.0,3908.4,0.3195]
[1761317275660,0.78665,3908.8,3908.4,0.3195]
[1761317275847,0.46045,3908.8,3908.4,0.3195]
[1761317276152,0.3262,3908.7,3908.4,0.3195]
[1761317276350,0.78666,3908.7,3908.2,0.46051]
[1761317276547,0.3262,3908.3,3908.1,0.32138939]
[1761317277059,0.3262,3908.3,3908.2,0.3483]
[1761317277355,0.77778,3908.5,3908.2,0.3483]
[1761317277762,0.46048,3908.5,3908.2,0.3483]
[1761317277958,0.3173,3908.4,3908.2,0.3483]
[1761317278358,0.3173,3908.4,3908.1,0.00188939]
[1761317278359,0.4466,3908.4,3908.1,0.00188939]
[1761317278561,0.3173,3908.3,3908.1,0.00188939]
[1761317280355,0.3173,3908.3,3908.1,0.35018939]
[1761317280551,0.3173,3908.3,3908.1,0.00188939]
[1761317281559,0.1303,3909.0,3908.2,0.3483]
[1761317281754,0.3173,3908.5,3908.3,0.3483]
[1761317281963,0.1303,3909.0,3908.1,0.00188939]
[1761317281964,0.4466,3908.4,3908.1,0.00188939]
[1761317282260,0.77782,3908.2,3908.1,0.00188939]
[1761317283352,0.1293,3907.8,3907.4,9.347]
[1761317283566,0.3173,3907.5,3907.4,9.6953]
[1761317283865,0.3173,3907.7,3907.5,0.3483]
[1761317284050,0.77789,3907.6,3907.4,9.347]
[1761317284251,0.7779,3907.5,3907.4,9.347]
[1761317284561,0.3173,3907.2,3907.0,0.80896]
[1761317284757,0.3173,3907.2,3907.0,0.8113347]
[1761317285456,0.3173,3907.1,3907.0,0.0023747]
[1761317285661,0.77795,3907.1,3907.0,0.0023747]
[1761317285864,0.3173,3907.1,3907.0,0.0023747]
[1761317286062,0.3173,3907.8,3907.3,0.3483]
[1761317286359,0.46052,3908.2,3907.4,0.3483]
[1761317286762,0.3173,3908.3,3908.0,0.46054]
[1761317286959,0.3173,3908.3,3908.1,0.3483]
[1761317287355,0.3508,3908.2,3907.8,0.46055]
[1761317287563,0.3508,3908.2,3907.9,0.3376]
[1761317287564,0.3508,3908.1,3907.9,0.3376]
[1761317287862,0.3508,3908.1,3907.9,0.46055]
[1761317288060,1.28138,3909.0,3908.0,0.79813]
[1761317288061,0.3508,3908.3,3908.0,0.79813]
[1761317288362,0.1303,3909.0,3907.6,1.15147]
[1761317288363,0.81126,3908.7,3908.3,0.79809]
[1761317288571,0.3508,3908.6,3908.4,0.3376]
[1761317288763,0.1303,3909.0,3907.9,0.3376]
[1761317289064,0.3508,3908.5,3908.0,0.46054]
[1761317289266,0.3508,3908.3,3907.6,0.3376]
[1761317289456,0.3508,3908.1,3907.8,0.46056]
[1761317289855,0.3508,3908.1,3908.0,0.3376]
[1761317290361,0.3508,3908.9,3908.1,0.3376]
[1761317290667,0.46051,3908.3,3908.1,0.3376]
[1761317290964,0.46051,3908.3,3907.8,0.59245]
[1761317290965,0.3508,3908.2,3907.8,0.59245]
[1761317291157,0.3508,3908.2,3907.9,0.3376]
[1761317291355,0.3508,3908.2,3907.9,0.46055]
[1761317291559,0.3508,3908.2,3908.1,0.3376]
[1761317292464,0.3508,3908.4,3908.2,0.46052]
[1761317292676,0.3508,3908.4,3908.2,0.79812]
[1761317293060,0.3508,3908.4,3908.3,0.3376]
[1761317293260,0.3508,3908.3,3908.1,0.3376]
[1761317293456,0.3508,3908.2,3908.1,0.3376]
[1761317293768,0.3508,3908.4,3908.1,0.46053]
[1761317293972,0.3508,3908.4,3908.2,0.3376]
[1761317294866,0.3508,3908.2,3908.0,0.46054]
[1761317295167,0.3508,3908.2,3908.1,0.3376]
[1761317295560,0.3508,3908.2,3907.8,0.3376]
[1761317295757,0.3508,3908.3,3907.8,0.3376]
[1761317295962,0.3508,3908.1,3907.8,0.79816]
[1761317296268,0.46052,3908.2,3907.3,0.3376]
[1761317296269,0.3508,3907.9,3907.3,0.3376]
[1761317296472,0.3508,3907.1,3907.0,0.4630347]
[1761317296665,0.3508,3907.5,3907.1,0.3376]
[1761317296865,0.3508,3907.9,3907.2,0.3376]
[1761317297067,0.81135,3907.9,3907.3,0.3376]
[1761317297365,0.137,3908.0,3907.0,0.1342747]
[1761317297366,0.3508,3907.7,3907.2,0.79823]
[1761317297571,0.3508,3908.0,3907.7,0.3376]
[1761317297763,0.3508,3908.2,3907.9,0.3376]
[1761317297957,0.3508,3908.2,3907.1,1.15161]
[1761317297958,0.3508,3908.3,3907.7,0.3376]
[1761317298159,0.3508,3908.3,3907.3,1.15156]
[1761317298471,0.3508,3908.1,3908.0,0.3376]
[1761317298967,0.81133,3908.1,3908.0,0.3376]
[1761317299170,0.3508,3908.3,3907.6,0.46058]
[1761317299471,0.46049,3908.4,3908.1,0.79813]
[1761317299665,0.3508,3908.4,3908.3,0.3376]
[1761317300178,0.81129,3908.4,3908.3,0.3376]
[1761317300368,0.46046,3908.7,3908.5,0.3376]
[1761317300557,0.81126,3908.7,3908.6,0.3376]
[1761317300764,0.3508,3908.5,3908.4,0.3376]
[1761317300969,0.3508,3908.5,3908.3,0.46049]
[1761317301275,0.3508,3908.4,3908.3,0.46049]
[1761317301470,0.3508,3908.4,3908.3,0.79809]
[1761317302076,0.3508,3908.6,3908.5,0.3376]
[1761317302266,0.46048,3908.5,3908.2,0.4605]
[1761317302470,0.46048,3908.5,3908.0,0.46054]
[1761317302471,0.4605,3908.3,3908.0,0.46054]
[1761317302670,0.3508,3908.2,3908.0,0.46054]
[1761317302969,0.7869,3907.9,3907.8,0.5647]
[1761317303169,1.24745,3907.9,3907.8,0.2271]
[1761317303374,0.7869,3907.9,3907.8,0.2271]
[1761317303569,1.02603,3908.2,3908.1,0.4569]
[1761317303770,1.24743,3908.2,3908.1,0.2271]
[1761317304071,0.46057,3907.8,3907.5,0.46059]
[1761317304270,0.46057,3907.8,3907.4,0.3376]
[1761317304271,1.28851,3907.5,3907.0,0.91499759]
[1761317304473,0.81145,3907.1,3907.0,0.0023747]
[1761317307868,0.137,3907.5,3907.0,0.3399747]
[1761317308075,0.3508,3907.3,3907.2,0.3376]
[1761317308268,0.3508,3907.1,3907.0,0.0023747]
[1761317309474,0.81145,3907.1,3907.0,0.0023747]
[1761317315193,1.24755,3907.1,3907.0,0.0023747]
[1761317315396,1.15174,3906.7,3905.8,1.13972289]
[1761317315587,0.3508,3905.3,3904.9,0.91262289]
[1761317315897,0.3508,3905.5,3905.4,0.3376]
[1761317316093,0.137,3906.0,3905.4,0.3376]
[1761317316094,0.8116,3905.8,3905.4,0.3376]
[1761317316291,0.3508,3905.8,3905.5,0.3376]
[1761317316493,0.81158,3906.0,3905.5,0.3376]
[1761317316693,0.3508,3905.8,3905.7,0.3376]
[1761317316888,0.3508,3905.8,3905.5,0.00295598]
[1761317316889,0.00264123,3906.0,3905.8,0.3376]
[1761317317094,0.46069,3906.7,3906.1,0.3376]
[1761317317392,0.3437,3906.5,3905.6,0.3274]
[1761317317693,0.3437,3906.2,3906.0,0.3274]
[1761317317891,0.3437,3906.2,3905.5,9.34495598]
[1761317317892,0.3437,3906.1,3905.7,0.3274]
[1761317318092,0.00313929,3906.1,3906.0,0.4645]
[1761317318498,0.00313929,3906.1,3906.0,0.3274]
[1761317318795,0.00313929,3906.1,3906.0,0.4645]
[1761317319893,0.34683929,3906.1,3906.0,0.3274]
[1761317321386,0.00313929,3906.1,3906.0,0.3274]
[1761317321588,0.34683929,3906.1,3905.9,0.46078]
[1761317321788,0.00313929,3906.1,3906.0,0.4645]
[1761317322689,0.00313929,3906.1,3906.0,0.92527]
[1761317324801,0.3437,3907.4,3906.9,0.3274]
[1761317325103,0.3437,3907.4,3907.1,0.3274]
[1761317325104,0.3437,3907.3,3907.1,0.3274]
[1761317325905,0.3437,3907.2,3906.7,0.46068]
[1761317326099,0.3437,3907.1,3906.8,0.46067]
[1761317326305,0.3437,3907.1,3907.0,0.46066]
[1761317326603,0.3437,3907.1,3907.0,0.78806]
[1761317327100,0.34655938,3907.3,3907.2,0.3274]
[1761317327304,0.00285938,3907.3,3907.2,0.92513]
[1761317327498,0.00285938,3907.3,3907.2,1.1024596]
[1761317327894,0.34655938,3907.3,3907.2,0.78803]
[1761317328407,0.00285938,3907.3,3907.2,0.92513]
[1761317329492,0.00285938,3907.3,3907.2,0.3274]
[1761317329993,0.34655938,3907.3,3906.9,9.34]
[1761317330295,0.00285938,3907.3,3907.2,0.78803]
[1761317330496,0.34655938,3907.3,3907.0,0.46065]
[1761317330690,0.34655938,3907.3,3906.5,1.68601191]
[1761317330892,0.3437,3906.9,3906.6,0.4607]
[1761317331105,0.3437,3906.9,3906.7,0.46069]
[1761317331401,0.3437,3907.2,3907.0,0.3274]
[1761317331599,0.3437,3907.1,3907.0,0.3274]
[1761317331806,0.3437,3906.9,3906.7,0.3274]
[1761317331999,0.3437,3906.9,3906.7,0.78809]
[1761317332200,0.3437,3906.9,3906.8,0.78808]
[1761317332394,0.00285938,3907.3,3906.6,1.15177]
[1761317332702,0.00285938,3907.3,3907.2,0.78803]
[1761317335305,0.00285938,3907.3,3907.2,1.23513]
[1761317336202,0.00285938,3907.3,3907.2,10.57413]
[1761317338303,0.23025938,3907.3,3907.2,10.57413]
[1761317338504,0.57635938,3907.3,3907.2,10.57313]
[1761317338710,0.80905938,3907.3,3907.2,10.57313]
[1761317339205,0.80905938,3907.3,3907.2,10.24573]
[1761317339400,0.80905938,3907.3,3907.2,10.1056]
[1761317340095,1.26967938,3907.3,3907.2,0.4471]
[1761317340296,0.5735,3906.5,3906.4,3.6266]
[1761317340598,0.2274,3906.5,3906.4,4.08733]
[1761317340799,0.5735,3906.8,3906.7,0.5339]
[1761317341010,0.8062,3906.8,3906.7,0.5339]
[1761317341399,0.1349,3906.5,3906.4,2.862]
[1761317341604,0.9411,3906.0,3905.9,10.01119]
[1761317341908,0.595,3906.5,3906.4,0.2134]
[1761317342300,0.9411,3906.5,3906.4,0.2134]
[1761317342803,0.8062,3906.5,3906.4,0.2134]
[1761317343005,0.8062,3906.5,3906.4,0.7646]
[1761317343198,0.5735,3906.5,3906.4,0.7646]
[1761317343399,0.5735,3906.9,3906.8,0.7646]
[1761317343705,0.00285938,3907.3,3906.3,1.15184]
[1761317343706,0.00285938,3907.3,3907.2,0.3205]
[1761317343896,0.34895938,3907.3,3907.0,0.3205]
[1761317344094,0.34895938,3907.3,3906.6,9.337]
[1761317344095,0.3461,3907.1,3906.9,0.3205]
[1761317344310,0.3461,3906.7,3906.2,0.3205]
[1761317344607,0.1349,3906.5,3906.2,9.337]
[1761317344808,0.1349,3906.0,3905.5,0.00295598]
[1761317345006,0.3461,3905.6,3905.5,0.00295598]
[1761317345202,0.80692,3905.6,3905.5,0.00295598]
[1761317346107,0.80692,3905.6,3905.5,0.32345598]
[1761317346303,0.80692,3905.6,3905.5,0.00295598]
[1761317347609,0.59845,3905.4,3904.1,1.36931999]
[1761317347910,0.59845,3905.4,3904.5,7.683]
[1761317347911,0.79311,3904.9,3904.5,7.683]
[1761317348109,0.3322,3904.7,3904.5,8.0129]
[1761317348407,0.3322,3904.7,3904.5,8.14395]
[1761317348607,0.3322,3904.7,3904.5,7.683]
[1761317348910,0.3322,3904.7,3904.5,8.47641307]
[1761317349097,0.3322,3904.7,3904.5,8.01546307]
[1761317349604,0.3322,3904.6,3904.5,0.00256307]
[1761317350306,0.88228964,3904.6,3904.5,0.00256307]
[1761317351004,0.3322,3904.6,3904.5,0.00256307]
[1761317351207,0.3322,3905.1,3904.5,0.33246307]